[Event "IIFL Wealth  4th Mumbai Junior U-13"]
[Site "Mumbai"]
[Date "2019.01.06"]
[Round "8"]
[White "Jain Adi"]
[Black "Ananmay Sharma"]
[Result "0-1"]
[ECO "D02"]
[WhiteElo "1545"]
[BlackElo "1749"]
[Annotator "NA"]
[PlyCount "152"]
[EventDate "2018.12.30"]
[EventType "swiss"]
[EventCountry "IND"]
[SourceTitle "playchess.com"]
[Source "ChessBase"]
[SourceQuality "1"]
[TimeControl "40/5400+30:1800+30"]

1. d4 {[%emt 0:00:00]} d5 {[%emt 0:00:00]} 2. Nf3 {[%emt 0:00:00]} Nf6 {[%emt 0:00:00]} 3. g3 {[%emt 0:00:03]} Bg4 {[%emt 0:00:50]} 4. Bg2 {[%emt 0:00:14]} e6 {[%emt 0:00:09]} 5. c4 {[%emt 0:00:18]} c6 {[%emt 0:00:06]} 6. O-O {[%emt 0:00:20]} Nbd7 {[%emt 0:00:50]} 7. Nbd2 {[%emt 0:01:12]} Be7 {[%emt 0:01:31]} 8. b3 {[%emt 0:00:56]} O-O {[%emt 0:00:23]} 9. Bb2 {[%emt 0:00:29]} h6 {[%emt 0:02:30]} 10. Rc1 {[%emt 0:08:37]} a5 {[%emt 0:02:17]} 11. Qc2 {[%emt 0:05:38]} Bf5 {[%emt 0:01:49]} 12. Qd1 {[%emt 0:03:05]} Bh7 {[%emt 0:10:32]} 13. Re1 {[%emt 0:12:08]} Qb6 {[%emt 0:05:39]} 14. Ne5 {[%emt 0:16:39]} Nxe5 {[%emt 0:13:00]} 15. dxe5 {[%emt 0:01:15]} Nd7 {[%emt 0:02:03]} 16. cxd5 {[%emt 0:05:21]} cxd5 {[%emt 0:09:39]} 17. e4 {[%emt 0:02:12]} Nc5 {[%emt 0:09:12]} 18. Qe2 {[%emt 0:16:36]} Rfd8 {[%emt 0:03:07]} 19. Bd4 {[%emt 0:04:48]} dxe4 {[%emt 0:02:34]} 20. Bxc5 {[%emt 0:01:15]} Bxc5 {[%emt 0:00:09]} 21. Nxe4 {[%emt 0:04:23]} Ba3 {[%emt 0:06:27]} 22. Rc4 {[%emt 0:03:34]} Bg6 {[%emt 0:03:00]} 23. h4 {[%emt 0:05:12]} Rac8 {[%emt 0:05:10]} 24. Rxc8 {[%emt 0:02:47]} Rxc8 {[%emt 0:00:02]} 25. h5 {[%emt 0:00:15]} Bh7 {[%emt 0:00:55]} 26. Rd1 {[%emt 0:01:33]} Rd8 {[%emt 0:04:29]} 27. Rxd8+ {[%emt 0:01:05]} Qxd8 {[%emt 0:00:35]} 28. Nd6 {[%emt 0:00:55]} b6 {[%emt 0:01:09]} 29. Be4 {[%emt 0:02:49]} Bxe4 {[%emt 0:00:31]} 30. Nxe4 {[%emt 0:00:12]} Qd4 {[%emt 0:00:37]} 31. Nd2 {[%emt 0:00:45]} Qb2 {[%emt 0:01:37]} 32. Qd3 {[%emt 0:00:46]} Qxe5 {[%emt 0:00:26]} 33. Nc4 {[%emt 0:00:21]} Qe1+ {[%emt 0:00:58]} 34. Kg2 {[%emt 0:00:21]} Bc5 {[%emt 0:00:07]} 35. Qd8+ {[%emt 0:00:20]} Kh7 {[%emt 0:00:17]} 36. Qd3+ {[%emt 0:00:17]} f5 {[%emt 0:00:24]} 37. Qf3 {[%emt 0:00:53]} b5 {[%emt 0:00:34]} 38. Ne3 {[%emt 0:00:26]} Bxe3 {[%emt 0:00:15]} 39. fxe3 {[%emt 0:00:17]} Qd2+ {[%emt 0:00:06]} 40. Kh3 {[%emt 0:00:00]} Qd5 {[%emt 0:00:00]} 41. Qf1 {[%emt 0:02:38]} Qe4 {[%emt 0:02:36]} 42. Kh2 {[%emt 0:06:07]} Qxe3 {[%emt 0:00:58]} 43. Qxb5 {[%emt 0:00:16]} Qf2+ {[%emt 0:00:07]} 44. Kh1 {[%emt 0:00:40]} Qxg3 {[%emt 0:01:32]} 45. Qxa5 {[%emt 0:00:53]} Qh3+ {[%emt 0:00:09]} 46. Kg1 {[%emt 0:00:05]} Qxh5 {[%emt 0:00:11]} 47. Qd2 {[%emt 0:01:32]} Qg4+ {[%emt 0:00:29]} 48. Qg2 {[%emt 0:00:45]} Qd4+ {[%emt 0:00:38]} 49. Qf2 {[%emt 0:00:15]} Qa1+ {[%emt 0:00:24]} 50. Kg2 {[%emt 0:00:13]} Qb1 {[%emt 0:00:19]} 51. Qe2 {[%emt 0:00:56]} e5 {[%emt 0:02:18]} 52. Qxe5 {[%emt 0:03:06]} Qxa2+ {[%emt 0:00:07]} 53. Kh1 {[%emt 0:00:11]} Qxb3 {[%emt 0:01:40]} 54. Qxf5+ {[%emt 0:00:07]} Kh8 {[%emt 0:00:05]} 55. Qf8+ {[%emt 0:00:04]} Qg8 {[%emt 0:00:04]} 56. Qf5 {[%emt 0:00:22]} g6 {[%emt 0:00:21]} 57. Qh3 {[%emt 0:00:47]} Kh7 {[%emt 0:00:17]} 58. Qd3 {[%emt 0:00:29]} Qf7 {[%emt 0:00:15]} 59. Qe4 {[%emt 0:01:25]} h5 {[%emt 0:00:34]} 60. Qe5 {[%emt 0:00:48]} Qf1+ {[%emt 0:10:57]} 61. Kh2 {[%emt 0:00:25]} Qf2+ {[%emt 0:01:50]} 62. Kh1 {[%emt 0:00:37]} Qh4+ {[%emt 0:00:33]} 63. Kg2 {[%emt 0:00:45]} Qg4+ {[%emt 0:00:08]} 64. Kh1 {[%emt 0:00:26]} Qf5 {[%emt 0:00:34]} 65. Qe7+ {[%emt 0:00:59]} Kh6 {[%emt 0:00:11]} 66. Qe3+ {[%emt 0:00:47]} Qg5 {[%emt 0:01:44]} 67. Qe8 {[%emt 0:01:11]} Qf6 {[%emt 0:00:19]} 68. Qe3+ {[%emt 0:00:23]} g5 {[%emt 0:00:04]} 69. Qe8 {[%emt 0:02:18]} h4 {[%emt 0:00:25]} 70. Qc8 {[%emt 0:00:49]} Kh5 {[%emt 0:00:50]} 71. Qe8+ {[%emt 0:01:34]} Kg4 {[%emt 0:01:15]} 72. Qd7+ {[%emt 0:01:08]} Kg3 {[%emt 0:00:36]} 73. Qc7+ {[%emt 0:01:08]} Qf4 {[%emt 0:00:13]} 74. Qc3+ {[%emt 0:03:08]} Qf3+ {[%emt 0:00:07]} 75. Qxf3+ {[%emt 0:00:08]} Kxf3 {[%emt 0:00:04]} 76. Kh2 {[%emt 0:00:01]} g4 {[%emt 0:00:06]} 0-1

[Event "IIFL Wealth  4th Mumbai Junior U-13"]
[Site "Mumbai"]
[Date "2019.01.06"]
[Round "8"]
[White "Nehete Arnav"]
[Black "Tawade Arnav"]
[Result "1/2-1/2"]
[ECO "D14"]
[WhiteElo "1544"]
[BlackElo "1285"]
[Annotator "NA"]
[PlyCount "93"]
[EventDate "2018.12.30"]
[EventType "swiss"]
[EventCountry "IND"]
[SourceTitle "playchess.com"]
[Source "ChessBase"]
[SourceQuality "1"]
[TimeControl "40/5400+30:1800+30"]

1. d4 {[%emt 0:04:55]} d5 {[%emt 0:00:00]} 2. c4 {[%emt 0:00:38]} c6 {[%emt 0:00:00]} 3. cxd5 {[%emt 0:00:50]} cxd5 {[%emt 0:00:02]} 4. Nf3 {[%emt 0:00:04]} Nf6 {[%emt 0:00:33]} 5. Nc3 {[%emt 0:00:04]} Nc6 {[%emt 0:00:27]} 6. Bf4 {[%emt 0:00:15]} Bf5 {[%emt 0:00:58]} 7. e3 {[%emt 0:00:54]} e6 {[%emt 0:02:17]} 8. Qb3 {[%emt 0:02:40]} Bb4 {[%emt 0:17:44]} 9. Bb5 {[%emt 0:09:34]} Qa5 {[%emt 0:07:02]} 10. O-O {[%emt 0:02:59]} O-O {[%emt 0:05:45]} 11. Rfc1 {[%emt 0:09:52]} Rfc8 {[%emt 0:08:21]} 12. a3 {[%emt 0:13:11]} Bxc3 {[%emt 0:06:50]} 13. Rxc3 {[%emt 0:03:02]} Ne4 {[%emt 0:17:30]} 14. Rcc1 {[%emt 0:00:08]} Qb6 {[%emt 0:02:38]} 15. Qa4 {[%emt 0:03:39]} h6 {[%emt 0:05:38]} 16. h3 {[%emt 0:13:49]} a6 {[%emt 0:02:51]} 17. Bxc6 {[%emt 0:01:52]} bxc6 {[%emt 0:00:28]} 18. b4 {[%emt 0:00:09]} a5 {[%emt 0:00:19]} 19. Ne5 {[%emt 0:05:30]} axb4 {[%emt 0:08:14]} 20. Qxb4 {[%emt 0:00:08]} Qxb4 {[%emt 0:01:51]} 21. axb4 {[%emt 0:00:34]} Rxa1 {[%emt 0:01:40]} 22. Rxa1 {[%emt 0:01:51]} f6 {[%emt 0:00:24]} 23. Nd3 {[%emt 0:04:31]} Nc3 {[%emt 0:02:29]} 24. Nc1 {[%emt 0:02:46]} Bc2 {[%emt 0:02:53]} 25. Kf1 {[%emt 0:02:28]} Ba4 {[%emt 0:03:56]} 26. Ra3 {[%emt 0:04:52]} Bb5+ {[%emt 0:00:02]} 27. Ke1 {[%emt 0:00:01]} Na4 {[%emt 0:01:42]} 28. Nb3 {[%emt 0:00:15]} Nb6 {[%emt 0:00:17]} 29. Ra7 {[%emt 0:06:01]} Ra8 {[%emt 0:00:47]} 30. Ra5 {[%emt 0:05:26]} Rc8 {[%emt 0:00:31]} 31. Nc5 {[%emt 0:00:35]} Nc4 {[%emt 0:00:05]} 32. Ra7 {[%emt 0:00:56]} e5 {[%emt 0:00:16]} 33. dxe5 {[%emt 0:01:05]} fxe5 {[%emt 0:00:02]} 34. Bg3 {[%emt 0:00:08]} Re8 {[%emt 0:01:35]} 35. Kd1 {[%emt 0:01:05]} Nb2+ {[%emt 0:00:44]} 36. Kc2 {[%emt 0:00:06]} Nc4 {[%emt 0:00:04]} 37. Kc3 {[%emt 0:00:41]} Nb6 {[%emt 0:00:30]} 38. Rb7 {[%emt 0:00:29]} Na4+ {[%emt 0:00:16]} 39. Nxa4 {[%emt 0:00:47]} Bxa4 {[%emt 0:00:01]} 40. f3 {[%emt 0:00:00]} Bb5 {[%emt 0:00:00]} 41. Rb6 {[%emt 0:07:06]} e4 {[%emt 0:19:21]} 42. Kd4 {[%emt 0:02:26]} exf3 {[%emt 0:00:53]} 43. gxf3 {[%emt 0:00:02]} Rf8 {[%emt 0:00:16]} 44. Rb8 {[%emt 0:01:39]} Rxb8 {[%emt 0:00:21]} 45. Bxb8 {[%emt 0:00:02]} Be2 {[%emt 0:01:26]} 46. f4 {[%emt 0:01:16]} Kf7 {[%emt 0:00:43]} 47. Kc5 {[%emt 0:00:46]} 1/2-1/2

[Event "IIFL Wealth  4th Mumbai Junior U-13"]
[Site "Mumbai"]
[Date "2019.01.06"]
[Round "8"]
[White "Dhanvij Ansh"]
[Black "Sadbhav Rautela"]
[Result "1-0"]
[ECO "D43"]
[WhiteElo "1523"]
[BlackElo "1746"]
[Annotator "NA RC"]
[PlyCount "67"]
[EventDate "2018.12.30"]
[EventType "swiss"]
[EventCountry "IND"]
[SourceTitle "playchess.com"]
[Source "ChessBase"]
[SourceQuality "1"]
[TimeControl "40/5400+30:1800+30"]

1. d4 {[%emt 0:00:00]} d5 {[%emt 0:00:00]} 2. c4 {[%emt 0:00:00]} c6 {[%emt 0:00:00]} 3. Nc3 {[%emt 0:00:21]} Nf6 {[%emt 0:00:00]} 4. Nf3 {[%emt 0:00:11]} e6 {[%emt 0:00:00]} 5. g3 {[%emt 0:00:27]} Bd6 {[%emt 0:00:40]} 6. Bg2 {[%emt 0:01:17]} O-O {[%emt 0:00:59]} 7. O-O {[%emt 0:01:20]} Nbd7 {[%emt 0:01:50]} 8. Qd3 {[%emt 0:00:32]} dxc4 {[%emt 0:08:21]} 9. Qxc4 {[%emt 0:00:08]} Qc7 {[%emt 0:00:57]} 10. e4 {[%emt 0:05:29]} e5 {[%emt 0:10:34]} 11. Rd1 {[%emt 0:00:35]} Nb6 {[%emt 0:03:38]} 12. Qe2 {[%emt 0:03:41]} exd4 {[%emt 0:03:26]} 13. Nxd4 {[%emt 0:04:57]} Qe7 {[%emt 0:12:14]} 14. a4 {[%emt 0:03:48]} a5 {[%emt 0:10:08]} 15. Be3 {[%emt 0:03:05]} Bc7 {[%emt 0:02:01]} 16. h3 {[%emt 0:05:24]} Be6 {[%emt 0:09:55]} 17. f4 {[%emt 0:03:34]} Rad8 {[%emt 0:07:32]} 18. Bf2 {[%emt 0:05:42]} Rfe8 {[%emt 0:01:53]} 19. e5 {[%emt 0:02:22]} Nfd5 {[%emt 0:00:21]} 20. Ne4 {[%emt 0:01:43]} Bc8 {[%emt 0:07:10]} 21. Qh5 {[%emt 0:07:21]} f6 {[%emt 0:03:39]} 22. exf6 {[%emt 0:07:15]} Nxf6 {[%emt 0:00:14]} 23. Nxf6+ {[%emt 0:01:44]} Qxf6 {[%emt 0:00:10]} 24. Nf3 {[%emt 0:06:16]} Nd5 {[%emt 0:09:01]} 25. Ng5 {[%emt 0:05:59]} Bf5 {[%emt 0:02:09]} 26. Re1 {[%emt 0:08:27]} Bg6 {[%emt 0:00:37]} 27. Qg4 {[%emt 0:05:24]} Qxb2 {[%emt 0:03:13]} 28. f5 {[%emt 0:02:20]} Bf7 {[%emt 0:01:02]} 29. Nxf7 {[%emt 0:00:28]} Kxf7 {[%emt 0:01:15]} 30. Qh5+ {[%emt 0:00:54]} Kf8 {[%emt 0:01:19]} 31. Bxd5 {[%emt 0:00:51]} Rxe1+ {[%emt 0:00:38]} 32. Rxe1 {[%emt 0:00:09]} cxd5 {[%emt 0:00:02]} 33. Bc5+ {[%emt 0:00:17]} Kg8 {[%emt 0:00:06]} 34. Re8+ 1-0

[Event "IIFL Wealth  4th Mumbai Junior U-13"]
[Site "Mumbai"]
[Date "2019.01.06"]
[Round "8"]
[White "Balkawade Sai"]
[Black "Sai Mahati A"]
[Result "1-0"]
[ECO "C54"]
[WhiteElo "1482"]
[BlackElo "1267"]
[Annotator "NA"]
[PlyCount "58"]
[EventDate "2018.12.30"]
[EventType "swiss"]
[EventCountry "IND"]
[SourceTitle "playchess.com"]
[Source "ChessBase"]
[SourceQuality "1"]
[TimeControl "40/5400+30:1800+30"]

1. e4 {[%emt 0:00:00]} e5 {[%emt 0:00:00]} 2. Nf3 {[%emt 0:00:00]} Nc6 {[%emt 0:00:00]} 3. Bc4 {[%emt 0:00:00]} Bc5 {[%emt 0:00:02]} 4. c3 {[%emt 0:04:32]} Nf6 {[%emt 0:00:16]} 5. d3 {[%emt 0:00:14]} d6 {[%emt 0:02:46]} 6. O-O {[%emt 0:02:39]} O-O {[%emt 0:01:16]} 7. Nbd2 {[%emt 0:03:23]} a6 {[%emt 0:01:48]} 8. Bb3 {[%emt 0:01:44]} Ba7 {[%emt 0:01:07]} 9. h3 {[%emt 0:01:37]} Ne7 {[%emt 0:01:58]} 10. Re1 {[%emt 0:02:28]} Ng6 {[%emt 0:00:36]} 11. Nf1 {[%emt 0:01:31]} Nh5 {[%emt 0:04:58]} 12. d4 {[%emt 0:11:48]} Qe8 {[%emt 0:07:46]} 13. N3h2 {[%emt 0:13:16]} Nhf4 {[%emt 0:04:01]} 14. Ng3 {[%emt 0:02:36]} Kh8 {[%emt 0:05:39]} 15. Bc2 {[%emt 0:05:34]} Qc6 {[%emt 0:19:01]} 16. Be3 {[%emt 0:09:00]} Qe8 {[%emt 0:11:57]} 17. Nh5 {[%emt 0:08:41]} Qe7 {[%emt 0:09:25]} 18. Bxf4 {[%emt 0:20:08]} exf4 {[%emt 0:01:46]} 19. Qf3 {[%emt 0:00:55]} Qg5 {[%emt 0:01:12]} 20. g4 {[%emt 0:00:36]} f5 {[%emt 0:07:16]} 21. Kh1 {[%emt 0:02:45]} fxg4 {[%emt 0:01:08]} 22. hxg4 {[%emt 0:00:07]} Nh4 {[%emt 0:00:36]} 23. Qh3 {[%emt 0:00:39]} Qxh5 {[%emt 0:01:01]} 24. e5 {[%emt 0:01:41]} Qh6 {[%emt 0:02:46]} 25. e6 {[%emt 0:02:55]} Bxe6 {[%emt 0:07:03]} 26. Rxe6 {[%emt 0:01:09]} Qxe6 {[%emt 0:00:05]} 27. Qxh4 {[%emt 0:00:05]} Qh6 {[%emt 0:00:30]} 28. Qe7 Bb6 29. Qh4 Ba7 1-0

[Event "IIFL Wealth  4th Mumbai Junior U-13"]
[Site "Mumbai"]
[Date "2019.01.06"]
[Round "8"]
[White "Varshita Jain"]
[Black "Darsh Shetty"]
[Result "1/2-1/2"]
[ECO "B27"]
[WhiteElo "1461"]
[BlackElo "1260"]
[Annotator "NA"]
[PlyCount "121"]
[EventDate "2018.12.30"]
[EventType "swiss"]
[EventCountry "IND"]
[SourceTitle "playchess.com"]
[Source "ChessBase"]
[SourceQuality "1"]
[TimeControl "40/5400+30:1800+30"]

1. e4 {[%emt 0:00:00]} c5 {[%emt 0:00:00]} 2. Nf3 {[%emt 0:00:00]} g6 {[%emt 0:00:00]} 3. Be2 {[%emt 0:00:00]} Bg7 {[%emt 0:00:07]} 4. Nc3 {[%emt 0:00:22]} Nc6 {[%emt 0:00:08]} 5. d3 {[%emt 0:02:08]} d6 {[%emt 0:00:15]} 6. Be3 {[%emt 0:01:12]} Nf6 {[%emt 0:00:18]} 7. h3 {[%emt 0:00:46]} a6 {[%emt 0:00:44]} 8. O-O {[%emt 0:02:03]} O-O {[%emt 0:00:26]} 9. Rb1 {[%emt 0:07:51]} b5 {[%emt 0:11:21]} 10. e5 {[%emt 0:08:22]} dxe5 {[%emt 0:07:07]} 11. Bxc5 {[%emt 0:01:31]} Nd7 {[%emt 0:15:04]} 12. Be3 {[%emt 0:05:09]} Nd4 {[%emt 0:00:12]} 13. Ne4 {[%emt 0:11:56]} Nxe2+ {[%emt 0:00:39]} 14. Qxe2 {[%emt 0:00:09]} Nf6 {[%emt 0:05:07]} 15. Nxf6+ {[%emt 0:13:16]} exf6 {[%emt 0:00:28]} 16. Bc5 {[%emt 0:02:58]} Re8 {[%emt 0:02:07]} 17. Rfe1 {[%emt 0:09:23]} Bb7 {[%emt 0:01:46]} 18. Qe3 {[%emt 0:02:13]} e4 {[%emt 0:09:16]} 19. dxe4 {[%emt 0:15:54]} Rxe4 {[%emt 0:02:33]} 20. Qa3 {[%emt 0:04:11]} Rxe1+ {[%emt 0:09:34]} 21. Rxe1 {[%emt 0:00:16]} Rc8 {[%emt 0:01:15]} 22. b4 {[%emt 0:03:16]} Bf8 {[%emt 0:01:09]} 23. Bxf8 {[%emt 0:03:35]} Qxf8 {[%emt 0:00:03]} 24. Qd3 {[%emt 0:02:13]} Bxf3 {[%emt 0:01:39]} 25. Qxf3 {[%emt 0:00:13]} Qxb4 {[%emt 0:00:12]} 26. c3 {[%emt 0:01:04]} Qxc3 {[%emt 0:01:46]} 27. Re3 {[%emt 0:02:15]} Qc1+ {[%emt 0:00:45]} 28. Kh2 {[%emt 0:00:10]} Qc7+ {[%emt 0:00:13]} 29. Kg1 {[%emt 0:00:21]} Qd6 {[%emt 0:00:23]} 30. g3 {[%emt 0:00:14]} Rc1+ {[%emt 0:00:48]} 31. Kg2 {[%emt 0:01:19]} Qc6 {[%emt 0:00:24]} 32. Ra3 {[%emt 0:00:26]} b4 {[%emt 0:03:54]} 33. Qxc6 {[%emt 0:00:27]} Rxc6 {[%emt 0:00:10]} 34. Ra4 {[%emt 0:00:53]} Rb6 {[%emt 0:00:32]} 35. Kf1 {[%emt 0:00:30]} Kf8 {[%emt 0:00:29]} 36. Ke2 {[%emt 0:00:08]} Ke7 {[%emt 0:00:45]} 37. Kd2 {[%emt 0:00:06]} Kd6 {[%emt 0:00:38]} 38. Kc2 {[%emt 0:00:10]} Kc6 {[%emt 0:00:09]} 39. Kb3 {[%emt 0:00:11]} Kb7 {[%emt 0:06:44]} 40. Rxb4 {[%emt 0:00:00]} Rxb4+ {[%emt 0:00:00]} 41. Kxb4 {[%emt 0:00:35]} Kb6 {[%emt 0:01:16]} 42. g4 {[%emt 0:00:28]} g5 {[%emt 0:03:54]} 43. a3 {[%emt 0:05:15]} Kc6 {[%emt 0:04:47]} 44. Kc4 {[%emt 0:01:35]} h6 {[%emt 0:02:35]} 45. f3 {[%emt 0:00:43]} Kb6 {[%emt 0:05:44]} 46. Kb4 {[%emt 0:00:56]} a5+ {[%emt 0:01:50]} 47. Kc4 {[%emt 0:01:41]} Kc6 {[%emt 0:01:07]} 48. a4 {[%emt 0:00:21]} f5 {[%emt 0:00:57]} 49. gxf5 {[%emt 0:01:53]} f6 {[%emt 0:00:27]} 50. Kd4 {[%emt 0:00:25]} h5 {[%emt 0:04:49]} 51. Kc4 {[%emt 0:00:17]} h4 {[%emt 0:00:28]} 52. Kd4 {[%emt 0:00:13]} Kd6 {[%emt 0:00:21]} 53. Kc4 {[%emt 0:00:36]} Ke5 54. Kb5 Kxf5 55. Kxa5 Kf4 56. Kb6 Kg3 57. a5 Kxh3 58. a6 Kg2 59. a7 h3 60. a8=Q h2 61. Qa2+ 1/2-1/2

[Event "IIFL Wealth  4th Mumbai Junior U-13"]
[Site "Mumbai"]
[Date "2019.01.06"]
[Round "8"]
[White "Laddha, Yash Jayesh"]
[Black "Keerthana B"]
[Result "0-1"]
[ECO "C84"]
[WhiteElo "1449"]
[BlackElo "1232"]
[Annotator "NA"]
[PlyCount "124"]
[EventDate "2018.12.30"]
[EventType "swiss"]
[EventCountry "IND"]
[SourceTitle "playchess.com"]
[Source "ChessBase"]
[SourceQuality "1"]
[TimeControl "40/5400+30:1800+30"]

1. e4 {[%emt 0:00:00]} e5 {[%emt 0:00:00]} 2. Nf3 {[%emt 0:00:00]} Nc6 {[%emt 0:00:00]} 3. Bb5 {[%emt 0:00:00]} a6 {[%emt 0:00:12]} 4. Ba4 {[%emt 0:00:00]} Nf6 {[%emt 0:00:11]} 5. O-O {[%emt 0:00:00]} Be7 {[%emt 0:00:11]} 6. c3 {[%emt 0:00:29]} d6 {[%emt 0:01:04]} 7. Re1 {[%emt 0:00:09]} b5 {[%emt 0:00:12]} 8. Bc2 {[%emt 0:00:06]} O-O {[%emt 0:00:48]} 9. h3 {[%emt 0:00:06]} Nb8 {[%emt 0:01:22]} 10. d4 {[%emt 0:00:27]} Nbd7 {[%emt 0:00:27]} 11. Nbd2 {[%emt 0:00:56]} c5 {[%emt 0:03:56]} 12. d5 {[%emt 0:00:26]} c4 {[%emt 0:01:52]} 13. a4 {[%emt 0:01:19]} Bb7 {[%emt 0:01:38]} 14. Nf1 {[%emt 0:00:38]} Qc7 {[%emt 0:04:08]} 15. Ng3 {[%emt 0:00:33]} Rfb8 {[%emt 0:01:43]} 16. Be3 {[%emt 0:06:33]} bxa4 {[%emt 0:03:40]} 17. Nf5 {[%emt 0:01:12]} Bf8 {[%emt 0:02:58]} 18. Qe2 {[%emt 0:14:46]} a5 {[%emt 0:15:22]} 19. Bxa4 {[%emt 0:01:59]} Nxe4 {[%emt 0:07:00]} 20. Red1 {[%emt 0:12:04]} Nef6 {[%emt 0:04:25]} 21. Bg5 {[%emt 0:15:23]} Nxd5 {[%emt 0:04:37]} 22. Nd2 {[%emt 0:06:54]} f6 {[%emt 0:06:55]} 23. Be3 {[%emt 0:02:27]} N7b6 {[%emt 0:04:58]} 24. Bxb6 {[%emt 0:12:03]} Nxb6 {[%emt 0:00:57]} 25. Qg4 {[%emt 0:00:54]} d5 {[%emt 0:06:41]} 26. Re1 {[%emt 0:06:30]} Nxa4 {[%emt 0:03:57]} 27. Rxa4 {[%emt 0:00:46]} Bc6 {[%emt 0:00:16]} 28. Ra2 {[%emt 0:00:28]} Rb6 {[%emt 0:02:13]} 29. Re3 {[%emt 0:01:08]} g6 {[%emt 0:01:36]} 30. Nh4 {[%emt 0:02:38]} Bd7 {[%emt 0:01:47]} 31. Qg3 {[%emt 0:01:30]} a4 {[%emt 0:03:45]} 32. Ndf3 {[%emt 0:05:02]} Bh6 {[%emt 0:00:56]} 33. Nd2 {[%emt 0:03:22]} Bxe3 {[%emt 0:01:08]} 34. fxe3 {[%emt 0:00:13]} Rab8 {[%emt 0:03:01]} 35. Nxg6 {[%emt 0:01:54]} hxg6 {[%emt 0:01:33]} 36. Qxg6+ {[%emt 0:00:12]} Kf8 {[%emt 0:00:18]} 37. Qh6+ {[%emt 0:00:49]} Ke7 {[%emt 0:00:37]} 38. Qg7+ {[%emt 0:01:02]} Ke6 {[%emt 0:02:16]} 39. Rxa4 {[%emt 0:01:49]} Rxb2 {[%emt 0:02:32]} 40. Ra6+ {[%emt 0:00:00]} R8b6 {[%emt 0:00:00]} 41. Qg8+ {[%emt 0:02:09]} Kd6 {[%emt 0:03:21]} 42. Qf8+ {[%emt 0:00:46]} Kc6 {[%emt 0:00:25]} 43. Ra5 {[%emt 0:05:23]} R2b5 {[%emt 0:03:40]} 44. Ra4 {[%emt 0:03:24]} Qd6 {[%emt 0:03:30]} 45. Qa8+ {[%emt 0:00:50]} Kc7 {[%emt 0:00:35]} 46. Ra7+ {[%emt 0:06:05]} Rb7 {[%emt 0:00:15]} 47. Ra6 {[%emt 0:02:10]} Qc5 {[%emt 0:00:55]} 48. Rxf6 {[%emt 0:01:25]} Qxe3+ {[%emt 0:00:28]} 49. Kh2 {[%emt 0:00:27]} Qxd2 {[%emt 0:00:45]} 50. Qa6 {[%emt 0:01:39]} R5b6 {[%emt 0:04:02]} 51. Qa5 {[%emt 0:00:57]} Qb2 {[%emt 0:07:02]} 52. Rf7 {[%emt 0:02:24]} Qb5 {[%emt 0:01:12]} 53. Qa3 {[%emt 0:00:42]} d4 {[%emt 0:00:31]} 54. cxd4 {[%emt 0:00:22]} exd4 {[%emt 0:00:23]} 55. Qg3+ {[%emt 0:00:07]} Rd6 {[%emt 0:01:04]} 56. Rf6 {[%emt 0:00:14]} Qd5 {[%emt 0:00:23]} 57. Rf8 {[%emt 0:00:23]} Rb3 {[%emt 0:00:37]} 58. Qf4 {[%emt 0:00:45]} d3 {[%emt 0:00:48]} 59. Rh8 {[%emt 0:00:36]} Rb2 {[%emt 0:00:49]} 60. Qg3 {[%emt 0:00:13]} Qxg2+ {[%emt 0:00:11]} 61. Qxg2 {[%emt 0:00:23]} Rxg2+ {[%emt 0:00:08]} 62. Kxg2 {[%emt 0:00:05]} d2 0-1

[Event "IIFL Wealth  4th Mumbai Junior U-13"]
[Site "Mumbai"]
[Date "2019.01.06"]
[Round "8"]
[White "Kriti Mayur Patel"]
[Black "Bulsara Yazaan"]
[Result "1-0"]
[ECO "C54"]
[WhiteElo "1439"]
[BlackElo "1244"]
[Annotator "NA"]
[PlyCount "116"]
[EventDate "2018.12.30"]
[EventType "swiss"]
[EventCountry "IND"]
[SourceTitle "playchess.com"]
[Source "ChessBase"]
[SourceQuality "1"]
[TimeControl "40/5400+30:1800+30"]

1. e4 {[%emt 0:00:00]} e5 {[%emt 0:00:00]} 2. Nf3 {[%emt 0:00:00]} Nc6 {[%emt 0:00:00]} 3. Bc4 {[%emt 0:00:00]} Bc5 {[%emt 0:00:11]} 4. c3 {[%emt 0:00:00]} Nf6 {[%emt 0:00:06]} 5. d3 {[%emt 0:00:00]} h6 {[%emt 0:00:15]} 6. Nbd2 {[%emt 0:00:14]} a6 {[%emt 0:00:09]} 7. Bb3 {[%emt 0:00:06]} O-O {[%emt 0:00:22]} 8. h3 {[%emt 0:00:07]} Re8 {[%emt 0:00:26]} 9. Nf1 {[%emt 0:00:30]} d5 {[%emt 0:01:14]} 10. Qe2 {[%emt 0:00:43]} dxe4 {[%emt 0:02:46]} 11. dxe4 {[%emt 0:00:32]} Be6 {[%emt 0:01:36]} 12. Ng3 {[%emt 0:01:01]} Qd7 {[%emt 0:07:29]} 13. Bc2 {[%emt 0:05:38]} Rad8 {[%emt 0:02:35]} 14. Nh4 {[%emt 0:01:06]} b5 {[%emt 0:00:50]} 15. Qf3 {[%emt 0:07:34]} Bc4 {[%emt 0:13:13]} 16. Ngf5 {[%emt 0:02:33]} Kh7 {[%emt 0:11:15]} 17. Nxh6 {[%emt 0:07:45]} gxh6 {[%emt 0:00:53]} 18. Qxf6 {[%emt 0:00:31]} Re6 {[%emt 0:00:39]} 19. Qf5+ {[%emt 0:03:06]} Kh8 {[%emt 0:04:43]} 20. Qh5 {[%emt 0:02:31]} Bf8 {[%emt 0:01:24]} 21. Nf5 {[%emt 0:03:36]} Kh7 {[%emt 0:01:07]} 22. Be3 {[%emt 0:02:01]} Nb4 {[%emt 0:00:59]} 23. Qd1 {[%emt 0:08:52]} Nxc2+ {[%emt 0:06:02]} 24. Qxc2 {[%emt 0:01:04]} Bd3 {[%emt 0:00:20]} 25. Qd1 {[%emt 0:08:57]} Bxe4 {[%emt 0:00:26]} 26. Qg4 {[%emt 0:02:13]} Qd3 {[%emt 0:04:56]} 27. Nh4 {[%emt 0:01:50]} Red6 {[%emt 0:04:24]} 28. Qh5 {[%emt 0:02:51]} Qc2 {[%emt 0:04:10]} 29. Qxf7+ {[%emt 0:01:28]} Bg7 {[%emt 0:00:06]} 30. O-O {[%emt 0:00:50]} R8d7 {[%emt 0:01:42]} 31. Qh5 {[%emt 0:04:42]} Qxb2 {[%emt 0:01:05]} 32. Nf5 {[%emt 0:01:59]} Bxf5 {[%emt 0:02:25]} 33. Qxf5+ {[%emt 0:01:18]} Kg8 {[%emt 0:00:33]} 34. Bc5 {[%emt 0:02:35]} Rf7 {[%emt 0:03:05]} 35. Qc8+ {[%emt 0:00:50]} Bf8 {[%emt 0:07:42]} 36. Bxd6 {[%emt 0:00:37]} cxd6 {[%emt 0:00:13]} 37. Qxa6 {[%emt 0:00:46]} Rxf2 {[%emt 0:04:44]} 38. Rxf2 {[%emt 0:02:28]} Qxa1+ {[%emt 0:00:02]} 39. Kh2 {[%emt 0:00:13]} Qe1 {[%emt 0:04:54]} 40. Rf3 {[%emt 0:00:00]} e4 {[%emt 0:00:00]} 41. Rg3+ {[%emt 0:04:37]} Kf7 {[%emt 0:01:35]} 42. Qb7+ {[%emt 0:03:41]} Be7 {[%emt 0:02:33]} 43. Qd5+ {[%emt 0:01:21]} Kf6 {[%emt 0:01:05]} 44. Qxb5 {[%emt 0:00:28]} Ke6 {[%emt 0:01:08]} 45. Rg6+ {[%emt 0:02:01]} Bf6 {[%emt 0:01:11]} 46. Qc4+ {[%emt 0:01:53]} Kf5 {[%emt 0:00:58]} 47. Qf7 {[%emt 0:02:01]} Qxc3 {[%emt 0:00:52]} 48. g4+ {[%emt 0:00:25]} Kf4 {[%emt 0:01:14]} 49. Qxf6+ {[%emt 0:00:08]} Qxf6 {[%emt 0:00:18]} 50. Rxf6+ {[%emt 0:00:04]} Ke5 {[%emt 0:00:19]} 51. Rf1 {[%emt 0:00:33]} d5 {[%emt 0:00:04]} 52. a4 {[%emt 0:00:25]} d4 {[%emt 0:00:21]} 53. a5 {[%emt 0:00:14]} d3 {[%emt 0:00:19]} 54. a6 {[%emt 0:00:21]} d2 {[%emt 0:00:35]} 55. a7 {[%emt 0:00:17]} e3 {[%emt 0:00:26]} 56. a8=Q {[%emt 0:00:11]} e2 {[%emt 0:00:13]} 57. Qe8+ {[%emt 0:00:04]} Kd4 {[%emt 0:00:19]} 58. Qxe2 {[%emt 0:00:07]} Kd5 1-0